bitfinex-derivatives/quotes_SOLF0:USTF0_20251210
["timestamp","ask_amount","ask_price","bid_price","bid_amount"]
[1765378719879,102.0684,137.17,137.09,9.64491193]
[1765378721100,102.0954,137.13,137.09,0.05011193]
[1765378721386,6.5643,137.11,137.09,0.05011193]
[1765378721585,6.5643,137.11,137.09,0.00011193]
[1765378722195,6.5677,137.04,137.0,3.03]
[1765378723293,0.05322253,137.03,137.01,0.05355042]
[1765378724094,6.62122253,137.03,137.01,0.05355042]
[1765378727390,6.62122253,137.03,137.01,3.08355042]
[1765378727694,6.62122253,137.03,137.01,0.05355042]
[1765378729290,0.05322253,137.03,137.01,3.08355042]
[1765378730387,6.62132253,137.03,137.01,0.05355042]
[1765378734301,102.1963,137.0,136.93,3.03]
[1765378735398,0.04780854,136.98,136.95,0.05149928]
[1765378735898,6.571,136.97,136.95,0.05149928]
[1765378738295,0.04780854,136.98,136.95,3.08149928]
[1765378739793,6.61830854,136.98,136.95,3.08149928]
[1765378740189,0.04780854,136.98,136.95,3.08149928]
[1765378740393,0.04780854,136.98,136.95,9.65299928]
[1765378740795,0.04780854,136.98,136.96,3.03]
[1765378743404,0.04780854,136.98,136.95,0.05149928]
[1765378744297,6.571,136.97,136.95,0.05149928]
[1765378745502,6.571,136.97,136.95,3.22149928]
[1765378745908,0.04780854,136.98,136.95,3.22149928]
[1765378747502,0.04780854,136.98,136.95,9.79319928]
[1765378747708,0.04780854,136.98,136.96,3.17]
[1765378748295,0.04780854,136.98,136.97,3.17]
[1765378748501,164.2308,137.06,136.97,3.17]
[1765378748807,6.5681,137.03,136.99,3.07]
[1765378749603,6.5681,137.03,137.0,0.04772952]
[1765378749604,0.04817192,137.02,137.0,0.04772952]
[1765378750910,0.04817192,137.02,137.0,3.11772952]
[1765378753713,0.04817192,137.02,137.01,3.07]
[1765378753914,171.28083624,137.1,137.01,3.07]
[1765378754700,109.20163624,137.13,137.04,3.07]
[1765378755011,102.0983,137.13,137.07,0.05133316]
[1765378755610,6.5642,137.11,137.07,3.12133316]
[1765378756213,102.0983,137.13,137.07,3.12133316]
[1765378756605,102.1101,137.11,137.07,0.05133316]
[1765378757410,102.1052,137.12,137.07,0.05133316]
[1765378758613,6.5641,137.12,137.07,3.12133316]
[1765378758918,62.06,137.15,137.07,3.12133316]
[1765378759910,6.5633,137.13,137.09,3.07]
[1765378760106,6.5633,137.13,137.1,0.05331083]
[1765378760320,102.0883,137.14,137.1,0.05331083]
[1765378761114,6.5638,137.12,137.1,0.05331083]
[1765378761715,102.1174,137.1,137.01,3.07]
[1765378762115,102.1139,137.11,137.01,3.07]
[1765378762615,0.05259941,137.07,137.06,3.07]
[1765378762816,0.04701726,137.08,137.06,3.07]
[1765378764517,0.04701726,137.08,137.06,9.6363]
[1765378764726,164.116,137.16,137.07,3.07]
[1765378765514,6.5633,137.13,137.09,3.07]
[1765378765718,6.5633,137.13,137.1,0.0527503]
[1765378766222,6.5637,137.12,137.1,0.0527503]
[1765378767019,102.1425,137.07,136.98,3.07]
[1765378767220,109.26573624,137.04,136.98,3.07]
[1765378767423,102.1696,137.03,136.95,9.6415]
[1765378767716,7.10333624,137.04,136.98,3.07]
[1765378767921,171.28583624,137.07,136.98,3.07]
[1765378768122,0.052471,137.04,137.01,0.04652]
[1765378770032,0.052471,137.04,137.01,3.11652]
[1765378770527,6.620071,137.04,137.01,3.11652]
[1765378770732,6.620071,137.04,137.01,0.04652]
[1765378771428,0.052471,137.04,137.01,3.11652]
[1765378772729,6.620071,137.04,137.01,3.11652]
[1765378772933,6.620071,137.04,137.01,0.04652]
[1765378774239,0.052471,137.04,137.01,3.25652]
[1765378776441,0.052471,137.04,137.01,9.82532]
[1765378776643,0.052471,137.04,137.02,3.21]
[1765378777242,0.052471,137.04,137.01,3.25652]
[1765378777441,0.052471,137.04,137.01,0.04652]
[1765378778743,0.052471,137.04,137.01,3.25652]
[1765378778943,6.620071,137.04,137.01,3.25652]
[1765378780042,0.052471,137.04,137.01,3.25652]
[1765378780835,0.052471,137.04,137.03,3.21]
[1765378781036,6.5659,137.08,137.03,3.21]
[1765378781744,6.5651,137.1,137.06,3.21]
[1765378781934,6.5651,137.1,137.07,0.05328755]
[1765378782136,6.5651,137.1,137.07,3.26328755]
[1765378784347,6.5652,137.09,137.07,0.05328755]
[1765378784948,7.10333624,137.12,137.07,0.05328755]
[1765378784949,102.0824,137.15,137.08,3.21]
[1765378785149,102.0824,137.15,137.1,0.04863691]
[1765378786249,6.5638,137.12,137.1,0.04863691]
[1765378786450,6.5638,137.12,137.1,3.25863691]
[1765378787450,6.563,137.14,137.1,3.25863691]
[1765378787947,6.5621,137.16,137.1,3.25863691]
[1765378788157,6.5621,137.16,137.13,3.21]
[1765378788657,6.5614,137.17,137.13,3.21]
[1765378788846,6.5614,137.17,137.14,0.05098992]
[1765378789151,6.5614,137.17,137.14,3.26098992]
[1765378789747,6.5607,137.19,137.14,3.26098992]
[1765378790346,6.5597,137.21,137.15,3.21]
[1765378790562,62.02,137.23,137.18,3.21]
[1765378791458,6.5595,137.21,137.18,3.21]
[1765378791757,164.0461,137.23,137.17,0.05289971]
[1765378792150,6.5605,137.19,137.17,0.05289971]
[1765378792352,109.13293624,137.22,137.17,0.05289971]
[1765378792547,6.5604,137.19,137.17,0.05289971]
[1765378793147,6.5597,137.21,137.17,0.05289971]
[1765378793347,7.10333624,137.22,137.17,0.05289971]
[1765378793961,7.10333624,137.22,137.17,3.26289971]
[1765378794160,6.56,137.2,137.17,3.26289971]
[1765378794352,109.13503624,137.22,137.17,0.05289971]
[1765378794753,6.56,137.2,137.17,3.26289971]
[1765378796456,102.0322,137.22,137.17,3.26289971]
[1765378796660,102.0261,137.23,137.17,3.26289971]
[1765378796860,6.5586,137.23,137.17,3.26289971]
[1765378797254,62.0,137.25,137.18,3.21]
[1765378797558,62.0,137.25,137.2,3.25964122]
[1765378797964,68.5577,137.25,137.2,3.25964122]
[1765378798163,102.0057,137.25,137.2,0.04964122]
[1765378798359,102.0132,137.24,137.2,0.04964122]
[1765378798565,6.5591,137.22,137.2,0.04964122]
[1765378799961,102.0583,137.18,137.1,3.21]
[1765378800272,102.0731,137.16,137.08,65.17]
[1765378800460,102.0879,137.14,137.08,61.96]
[1765378800766,0.05547565,137.12,137.1,0.05015771]
[1765378801260,6.5642,137.11,137.1,0.05015771]
[1765378801465,0.05547565,137.12,137.1,0.05015771]
[1765378802063,0.05547565,137.12,137.04,3.21]
[1765378802064,102.16017565,137.12,137.04,3.21]
[1765378802274,102.1047,137.12,137.04,3.21]
[1765378802470,6.5658,137.08,137.03,3.21]
[1765378802666,102.1101,137.11,137.03,3.21]
[1765378802972,164.1047,137.12,137.03,3.21]
[1765378803169,0.0527242,137.09,137.06,0.05453496]
[1765378803358,0.0527242,137.09,137.06,3.26453496]
[1765378804263,0.0527242,137.09,137.08,3.14]
[1765378804460,102.0896,137.14,137.06,0.05453496]
[1765378804658,176.42737787,137.16,137.05,3.14]
[1765378805171,6.5634,137.13,137.07,3.14]
[1765378805371,0.04856954,137.11,137.1,3.14]
[1765378805664,102.0303,137.22,137.12,3.14]
[1765378805665,114.38147787,137.22,137.12,3.14]
[1765378805872,102.0358,137.21,137.12,3.14]
[1765378806075,6.561,137.18,137.12,3.14]
[1765378806268,102.0435,137.2,137.12,3.14]
[1765378806570,102.0607,137.18,137.09,3.14]
[1765378806763,102.0607,137.18,137.12,0.04802747]
[1765378806764,6.5624,137.15,137.12,0.04802747]
[1765378807470,6.5629,137.14,137.12,0.04802747]
[1765378807766,102.0607,137.18,137.12,3.18802747]
[1765378807972,164.0435,137.2,137.12,3.18802747]
[1765378808663,6.5606,137.19,137.13,3.14]
[1765378808872,6.5606,137.19,137.15,3.18946648]
[1765378809961,102.0523,137.19,137.15,0.04946648]
[1765378810163,102.0591,137.18,137.15,0.04946648]
[1765378811168,6.5615,137.17,137.15,0.04946648]
[1765378811478,62.0,137.2,137.15,3.18946648]
[1765378811864,102.0592,137.18,137.15,0.04946648]
[1765378812375,6.5616,137.17,137.15,0.04946648]
[1765378814572,102.1025,137.12,137.01,102.1828]
[1765378814784,102.1322,137.08,137.02,3.32]
[1765378815075,102.1471,137.06,136.97,3.32]
[1765378815463,0.04617934,137.03,137.0,3.37254312]
[1765378816469,6.5664,137.07,137.0,3.37254312]
[1765378816773,102.11,137.11,137.02,3.32]
[1765378817176,6.5658,137.08,137.04,3.32]
[1765378817678,6.5658,137.08,137.06,3.32]
[1765378817877,102.11,137.11,137.06,3.32]
[1765378817878,6.5645,137.11,137.06,3.32]
[1765378818077,102.1028,137.12,137.06,3.32]
[1765378818378,6.5647,137.1,137.08,0.05179639]
[1765378821280,6.5679,137.04,136.96,3.32]
[1765378821671,6.5679,137.04,136.97,3.32]
[1765378821980,102.1656,137.04,136.97,3.32]
[1765378822177,0.04693958,137.02,136.99,0.05333851]
[1765378823179,0.04693958,137.02,136.99,3.37333851]
[1765378825271,0.04693958,137.02,137.0,6.5693]
[1765378825475,6.5662,137.07,137.01,3.32]
[1765378826284,102.1405,137.07,137.01,3.32]
[1765378826486,102.1405,137.07,137.03,0.05417265]
[1765378826684,102.1405,137.07,137.04,0.05206462]
[1765378826984,102.1369,137.08,137.04,0.04928709]
[1765378827370,6.567,137.06,137.04,0.04928709]
[1765378828072,6.5687,137.02,136.97,6.5705]
[1765378828271,6.5687,137.02,136.98,3.32]
[1765378828678,6.5692,137.01,136.98,3.32]
[1765378829081,6.61575276,137.01,136.98,3.36729]
[1765378829383,6.61575276,137.01,136.98,0.04729]
[1765378829682,6.61575276,137.01,136.98,3.36729]
[1765378830473,0.04655276,137.01,136.98,3.36729]
[1765378830884,0.04655276,137.01,137.0,3.32]
[1765378831475,6.5674,137.05,137.0,3.32]
[1765378831676,102.1472,137.06,137.0,3.32]
[1765378832181,102.1623,137.04,136.97,3.32]
[1765378832385,102.1545,137.05,136.99,3.36897363]
[1765378832386,0.02242864,137.02,136.99,3.36897363]
[1765378832882,6.5691,137.01,136.99,0.04897363]
[1765378833086,0.02242864,137.02,136.99,0.04897363]
[1765378833378,6.5691,137.01,136.99,0.04897363]
[1765378836078,0.02242864,137.02,136.99,0.04897363]
[1765378836281,102.1269,137.09,136.99,4.68897363]
[1765378836488,102.1269,137.09,137.0,3.18]
[1765378836682,102.1269,137.09,137.0,65.2]
[1765378836985,102.1269,137.09,137.01,3.18]
[1765378837379,102.1269,137.09,137.04,0.05260501]
[1765378837689,6.5666,137.06,137.04,0.05260501]
[1765378839181,6.566,137.08,137.04,0.05260501]
[1765378839381,6.566,137.08,137.04,3.23260501]
[1765378839694,102.1115,137.11,137.04,3.23260501]
[1765378839886,102.1247,137.09,137.04,0.05260501]
[1765378840082,102.1042,137.12,137.04,3.23260501]
[1765378840394,6.5655,137.09,137.04,3.23260501]
[1765378840780,164.1231,137.15,137.04,3.23260501]
[1765378840979,6.5643,137.11,137.08,0.05558657]
[1765378841385,62.04,137.15,137.08,3.23558657]
[1765378841589,102.0452,137.2,137.1,3.18]
[1765378841787,102.0452,137.2,137.14,0.05340697]
[1765378842089,6.5616,137.17,137.14,0.05340697]
[1765378842285,102.0387,137.21,137.14,0.05340697]
[1765378842488,6.5606,137.19,137.14,3.23340697]
[1765378842984,6.561,137.18,137.14,3.23340697]
[1765378844093,6.561,137.18,137.14,0.05340697]
[1765378844297,6.5615,137.17,137.14,0.05340697]
[1765378844590,102.0665,137.17,137.14,0.05340697]
[1765378844991,6.5622,137.16,137.14,0.05340697]
[1765378846180,6.5609,137.18,137.14,0.05340697]
[1765378846986,102.0653,137.17,137.14,0.05340697]
[1765378847495,6.5619,137.16,137.14,0.05340697]
[1765378847697,164.0939,137.19,137.14,0.05340697]
[1765378847996,62.04,137.19,137.14,3.23340697]
[1765378848696,176.39507787,137.23,137.14,3.23340697]
[1765378848890,102.0152,137.24,137.17,0.04622267]
[1765378849093,102.0152,137.24,137.17,3.22622267]
[1765378849391,6.5591,137.22,137.17,3.22622267]
[1765378849594,102.0283,137.22,137.17,0.04622267]
[1765378849784,6.5605,137.19,137.17,0.04622267]
[1765378850589,6.5597,137.21,137.17,3.22622267]
[1765378850794,164.0266,137.25,137.17,3.22622267]
[1765378851496,6.559,137.22,137.18,3.18]
[1765378851697,6.559,137.22,137.19,0.05050392]
[1765378852795,6.5598,137.21,137.19,0.05050392]
[1765378854392,6.5615,137.17,137.12,3.18]
[1765378855396,0.05050392,137.16,137.13,3.23448619]
[1765378855592,6.61240392,137.16,137.13,0.05448619]
[1765378856597,6.61240392,137.16,137.13,3.23448619]
[1765378856792,0.05050392,137.16,137.13,3.23448619]
[1765378856995,0.05050392,137.16,137.13,0.05448619]
[1765378857190,6.5624,137.15,137.13,0.05448619]
[1765378857704,0.05050392,137.16,137.13,3.23448619]
[1765378858205,0.05050392,137.16,137.13,0.05448619]
[1765378859001,6.61240392,137.16,137.13,0.05448619]
[1765378859608,6.5624,137.15,137.13,0.05448619]
[1765378859908,102.0836,137.15,137.06,3.18]
[1765378860307,6.5631,137.14,137.08,3.18]
[1765378860709,102.0583,137.18,137.08,3.18]
[1765378861004,102.0149,137.24,137.12,3.22769441]
[1765378861207,105.55683247,137.27,137.16,3.18]
[1765378861394,102.0233,137.23,137.16,3.18]
[1765378861798,102.0285,137.22,137.16,3.18]
[1765378862003,0.05123493,137.2,137.18,0.04793705]
[1765378863006,102.10073493,137.2,137.1,3.18]
[1765378863214,102.0495,137.2,137.1,3.18]
[1765378863606,6.5619,137.16,137.1,3.18]
[1765378864102,102.0233,137.23,137.08,171.17265517]
[1765378864103,6.5602,137.2,137.14,3.14]
[1765378865109,6.5583,137.24,137.16,3.19157453]
[1765378865311,102.0061,137.25,137.16,3.19157453]
[1765378865501,102.0131,137.24,137.16,3.14]
[1765378865706,102.007,137.25,137.17,3.14]
[1765378866104,102.0222,137.23,137.17,3.14]
[1765378866309,6.5589,137.22,137.2,0.05217614]
[1765378866510,102.0222,137.23,137.2,0.05037839]
[1765378867005,102.007,137.25,137.2,3.19037839]
[1765378867804,6.5583,137.24,137.2,3.19037839]
[1765378868211,3.56533247,137.27,137.2,3.19037839]
[1765378868415,3.56533247,137.27,137.24,3.06]
[1765378868608,0.02922144,137.27,137.24,3.11441817]
[1765378869301,101.9567,137.32,137.24,3.11441817]
[1765378869302,101.9547,137.32,137.24,3.11441817]
[1765378869512,101.9772,137.29,137.24,3.11441817]
[1765378869713,101.9913,137.27,137.24,0.05441817]
[1765378870910,6.5572,137.26,137.24,0.05441817]
[1765378871109,6.5572,137.26,137.12,102.0995]
[1765378871110,102.0214,137.23,137.16,3.06]
[1765378871709,6.5601,137.2,137.16,3.06]
[1765378871905,102.0283,137.22,137.16,3.06]
[1765378872117,0.05236289,137.2,137.18,0.04687157]
[1765378872411,6.61216289,137.2,137.18,0.04687157]
[1765378872914,0.05236289,137.2,137.18,0.04687157]
[1765378873305,0.05236289,137.2,137.18,3.10687157]
[1765378873813,101.9865,137.28,137.19,3.06]
[1765378874021,101.9865,137.28,137.2,6.5596]
[1765378874212,101.9865,137.28,137.21,3.06]
[1765378874411,6.5563,137.28,137.21,3.06]
[1765378874612,163.9576,137.29,137.21,3.06]
[1765378874808,163.9576,137.29,137.24,0.05455478]
[1765378875203,7.08305517,137.3,137.24,3.11455478]
[1765378875402,101.9616,137.31,137.24,3.11455478]
[1765378875605,101.9616,137.31,137.24,0.05455478]
[1765378875606,101.9762,137.29,137.24,0.05455478]
[1765378876207,6.5572,137.26,137.24,0.05455478]
[1765378877921,6.5552,137.3,137.24,3.11455478]
[1765378878219,101.947,137.33,137.24,3.11455478]
[1765378878425,101.9406,137.34,137.28,3.06]
[1765378879825,6.5547,137.31,137.28,3.06]
[1765378880737,101.9406,137.34,137.27,0.05115729]
[1765378880936,101.9611,137.31,137.27,0.05115729]
[1765378881131,101.97,137.3,137.27,0.05115729]
[1765378881330,6.5558,137.29,137.27,0.05115729]
[1765378882431,101.9913,137.27,137.21,64.98]
[1765378882637,101.9913,137.27,137.21,61.92]
[1765378882828,6.5582,137.24,137.21,61.92]
[1765378883036,101.9835,137.28,137.19,3.06]
[1765378883338,0.05321257,137.25,137.22,0.04777826]
[1765378883544,0.05321257,137.25,137.22,3.10777826]
[1765378888045,6.558,137.24,137.22,0.04777826]
[1765378888948,0.05321257,137.25,137.22,3.10777826]
[1765378889342,0.05321257,137.25,137.22,0.04777826]
[1765378889553,0.05321257,137.25,137.22,3.10777826]
[1765378890443,7.08305517,137.32,137.22,3.10777826]
[1765378890646,7.08305517,137.32,137.2,102.0392]
[1765378890647,7.08305517,137.32,137.24,3.06]
[1765378890847,6.5552,137.3,137.26,3.06]
[1765378891750,6.5552,137.3,137.27,3.10740738]
[1765378892349,6.5543,137.32,137.27,3.10740738]
[1765378892547,6.5543,137.32,137.28,3.06]
[1765378893253,6.5547,137.31,137.28,3.06]
[1765378893452,6.5547,137.31,137.28,3.10737773]
[1765378893953,6.5529,137.35,137.31,3.14]
[1765378894245,6.5529,137.35,137.28,0.04737773]
[1765378894246,101.9022,137.39,137.32,3.18721062]
[1765378894446,101.8893,137.41,137.32,3.18721062]
[1765378894640,101.8607,137.45,137.39,3.14]
[1765378894840,101.8607,137.45,137.41,0.05080172]
[1765378895048,101.8647,137.44,137.41,0.05080172]
[1765378895445,6.5493,137.42,137.41,0.05080172]
[1765378895643,108.4291,137.42,137.35,3.14]
[1765378895950,6.5493,137.42,137.35,65.06]
[1765378896136,6.5493,137.42,137.36,3.14]
[1765378896336,7.08305517,137.43,137.36,3.14]
[1765378896536,6.5484,137.44,137.36,3.14]
[1765378896741,0.04945911,137.41,137.4,3.14]
[1765378897949,21.89,137.54,137.4,3.14]
[1765378898149,108.3509,137.52,137.42,3.14]
[1765378898660,115.43395517,137.52,137.42,3.14]
[1765378898955,115.43395517,137.52,137.46,0.0519534]
[1765378899160,108.3509,137.52,137.46,0.0519534]
[1765378899453,6.5436,137.55,137.46,3.1919534]
[1765378899751,6.5436,137.55,137.49,0.0545671]
[1765378900254,6.5436,137.55,137.49,3.1945671]
[1765378900459,108.3118,137.57,137.49,3.1945671]
[1765378901455,101.7993,137.53,137.49,0.0545671]
[1765378901657,101.7993,137.53,137.46,61.88]
[1765378901658,101.7909,137.54,137.5,0.04983396]
[1765378902049,6.5442,137.53,137.5,0.04983396]
[1765378902246,7.08305517,137.55,137.5,3.18983396]
[1765378902853,101.7908,137.54,137.5,0.04983396]
[1765378903248,6.5451,137.51,137.5,0.04983396]
[1765378903450,6.5451,137.51,137.41,3.14]
[1765378903451,101.8215,137.5,137.41,3.14]
[1765378903649,101.8215,137.5,137.43,3.14]
[1765378904054,6.5469,137.48,137.43,3.14]
[1765378904756,0.04983396,137.47,137.44,0.05106934]
[1765378905557,6.59703396,137.47,137.44,0.05106934]
[1765378905857,0.04983396,137.47,137.44,0.05106934]
[1765378906061,101.89773396,137.47,137.44,0.05106934]
[1765378906353,115.48125517,137.46,137.44,0.05106934]
[1765378906758,108.3982,137.46,137.44,0.05106934]
[1765378907854,108.3982,137.46,137.44,0.00106934]
[1765378908051,6.5494,137.42,137.38,61.84]
[1765378908448,7.08305517,137.44,137.38,64.98]
[1765378908744,7.08305517,137.47,137.39,3.14]
[1765378908949,0.04841321,137.44,137.42,0.05266686]
[1765378910062,6.59711321,137.44,137.42,0.05266686]
[1765378911358,101.8816,137.42,137.33,3.14]
[1765378911565,108.97055517,137.41,137.33,3.14]
[1765378911951,101.8875,137.41,137.33,3.14]
[1765378912151,108.97055517,137.41,137.33,3.14]
[1765378912364,0.05402012,137.38,137.36,0.05523441]
[1765378912559,6.60552012,137.38,137.36,0.05523441]
[1765378912756,0.05402012,137.38,137.36,0.05523441]
[1765378915452,6.60552012,137.38,137.36,0.05523441]
[1765378915850,13.68857529,137.38,137.36,0.05523441]
[1765378916752,0.05402012,137.38,137.36,0.05523441]
[1765378917356,6.60552012,137.38,137.36,0.05523441]
[1765378917755,0.05402012,137.38,137.36,0.05523441]
[1765378917958,0.05402012,137.38,137.36,3.19523441]
[1765378918762,0.05402012,137.38,137.36,0.05523441]
[1765378920559,101.8505,137.46,137.36,3.19523441]
[1765378920762,101.8573,137.45,137.36,3.14]
[1765378920962,101.8996,137.4,137.29,101.9726]
[1765378921163,101.9101,137.38,137.3,3.14]
[1765378921470,101.9018,137.39,137.3,3.14]
[1765378921654,6.5529,137.35,137.33,0.05134392]
[1765378922060,101.9467,137.33,137.29,61.86]
[1765378922362,101.9467,137.33,137.24,3.14]
[1765378922757,101.9139,137.38,137.26,3.14]
[1765378922956,101.9139,137.38,137.27,3.14]
[1765378923167,0.04688214,137.34,137.31,3.19094259]
[1765378924865,0.04688214,137.34,137.32,3.1]
[1765378925567,0.04688214,137.34,137.31,0.05094259]
[1765378925770,101.98938214,137.34,137.31,0.05094259]
[1765378925961,6.5538,137.33,137.31,0.05094259]
[1765378926357,0.04688214,137.34,137.31,3.15094259]
[1765378927267,6.60018214,137.34,137.31,0.05094259]
[1765378927659,0.04688214,137.34,137.31,9.70544259]
[1765378927860,0.04688214,137.34,137.32,3.1]
[1765378928063,114.18866028,137.43,137.32,3.1]
[1765378928365,101.8797,137.42,137.32,3.1]
[1765378928557,6.5505,137.4,137.34,3.34]
[1765378928763,101.8832,137.42,137.34,3.34]
[1765378928968,0.04872756,137.39,137.34,3.34]
[1765378929161,0.04872756,137.39,137.37,3.39408344]
[1765378929370,0.04872756,137.39,137.37,0.05060779]
[1765378929975,6.59962756,137.39,137.37,0.05060779]
[1765378932173,6.59962756,137.39,137.3,65.2]
[1765378932174,6.5535,137.34,137.3,65.2]
[1765378932378,101.9389,137.34,137.26,3.34]
[1765378932672,101.9314,137.35,137.26,3.34]
[1765378932867,101.9546,137.32,137.26,3.34]
[1765378933068,101.9686,137.3,137.24,61.86]
[1765378933273,0.04711538,137.28,137.26,0.04877879]
[1765378934276,6.60351538,137.28,137.26,0.04877879]
[1765378934970,0.04711538,137.28,137.26,0.04877879]
[1765378935374,6.60341538,137.28,137.26,0.04877879]
[1765378936567,0.04711538,137.28,137.26,0.04877879]
[1765378937673,0.04711538,137.28,137.26,3.38877879]
[1765378939882,0.04711538,137.28,137.26,9.94567879]
[1765378940183,0.04711538,137.28,137.26,3.38877879]
[1765378940581,6.5547,137.31,137.26,3.38877879]
[1765378941580,0.046315,137.3,137.26,3.38877879]
[1765378942385,6.601415,137.3,137.26,3.38877879]
[1765378942978,6.5561,137.28,137.26,0.04877879]
[1765378944677,6.601815,137.3,137.27,3.34]
[1765378944877,0.046315,137.3,137.26,0.04877879]
[1765378945487,6.5561,137.28,137.26,0.04877879]
[1765378946987,6.5561,137.28,137.26,3.38877879]
[1765378947181,6.601715,137.3,137.26,3.38877879]
[1765378947381,0.046315,137.3,137.26,3.38877879]
[1765378948384,0.046315,137.3,137.26,0.04877879]
[1765378948581,101.9764,137.29,137.26,0.04877879]
[1765378948888,6.5561,137.28,137.26,0.04877879]
[1765378952310,101.9936,137.27,137.21,61.9]
[1765378953293,6.61332726,137.25,137.23,0.05088772]
[1765378955009,0.05542726,137.25,137.23,3.23088772]
[1765378955803,0.05542726,137.25,137.23,0.05088772]
[1765378956499,6.61312726,137.25,137.23,0.05088772]
[1765378962918,6.61312726,137.25,137.16,3.18]
[1765378962919,6.5604,137.19,137.16,3.18]
[1765378963614,6.5609,137.18,137.16,3.18]
[1765378963813,0.04998836,137.18,137.16,0.04932164]
[1765378964516,0.04998836,137.18,137.16,3.22932164]
[1765378965105,0.04998836,137.18,137.17,3.18]
[1765378965619,6.5594,137.21,137.18,3.18]
[1765378966715,6.5599,137.2,137.18,3.23451734]
[1765378967322,6.5599,137.2,137.18,0.05451734]
[1765378967916,6.5599,137.2,137.18,3.23451734]
[1765378968113,6.5599,137.2,137.18,0.05451734]
[1765378970822,6.5603,137.19,137.18,0.05451734]
[1765378971508,6.61568272,137.21,137.18,0.05451734]
[1765378971709,6.61568272,137.21,137.18,3.23451734]
[1765378972013,0.05588272,137.21,137.18,3.23451734]
[1765378973717,0.05588272,137.21,137.18,9.79531734]
[1765378973924,0.05588272,137.21,137.19,3.18]
[1765378974121,0.05588272,137.21,137.19,9.7403]
[1765378974314,0.05588272,137.21,137.19,3.18]
[1765378974517,101.9785,137.29,137.2,3.18]
[1765378975416,0.04767182,137.26,137.23,3.26512883]
[1765378977020,0.04767182,137.26,137.24,6.5579]
[1765378977324,0.04767182,137.26,137.25,3.21]
[1765378977630,0.04767182,137.26,137.23,0.05512883]
[1765378977846,0.04767182,137.26,137.23,3.26512883]
[1765378978329,0.04767182,137.26,137.24,3.21]
[1765378980629,0.04767182,137.26,137.24,9.7678]
[1765378980828,6.555,137.31,137.25,3.21]
[1765378981029,101.936,137.35,137.27,6.5563]
[1765378981329,101.9276,137.36,137.28,3.21]
[1765378981527,6.5534,137.34,137.28,3.21]
[1765378981730,102.00645764,137.32,137.3,0.04954357]
[1765378982624,102.00645764,137.32,137.25,61.92]
[1765378982832,101.9629,137.31,137.25,61.92]
[1765378983037,101.9629,137.31,137.25,65.13]
[1765378983221,0.05195764,137.32,137.29,3.21]
[1765378983421,0.05195764,137.32,137.26,3.21]
[1765378983624,0.05195764,137.32,137.28,0.05075818]
[1765378983821,0.05195764,137.32,137.28,3.31075818]
[1765378984529,101.8958,137.4,137.28,3.31075818]
[1765378984730,101.8958,137.4,137.29,3.26]
[1765378984925,6.5519,137.37,137.3,9.8148]
[1765378985228,6.5519,137.37,137.31,3.26]
[1765378985629,0.04757602,137.35,137.33,0.04603425]
[1765378987129,0.04757602,137.35,137.33,3.30603425]
[1765378987342,101.8659,137.44,137.34,3.26]
[1765378987529,101.8659,137.44,137.35,3.26]
[1765378987932,6.5496,137.42,137.35,3.26]
[1765378988335,101.8827,137.42,137.37,0.05205458]
[1765378989734,6.5495,137.42,137.37,3.31205458]
[1765378990325,101.887,137.41,137.37,0.05205458]
[1765378990726,101.8947,137.4,137.37,0.05205458]
[1765378990937,6.551,137.39,137.37,0.05205458]
[1765378991940,6.553,137.35,137.3,65.16]
[1765378992339,6.5534,137.34,137.3,65.16]
[1765378992637,101.9329,137.35,137.3,61.9]
[1765378992837,0.05133613,137.34,137.31,0.05034744]
[1765378993335,0.05133613,137.34,137.31,3.31034744]
[1765378994033,0.05133613,137.34,137.31,0.05034744]
[1765378995032,0.05133613,137.34,137.31,3.14034744]